[Event "*** Titled Tuesday Blitz"]
[Site "Chess.com"]
[Date "2020.05.12"]
[Round "6"]
[White "FedaMaster"]
[Black "Sjakkerntobi"]
[Result "1-0"]
[WhiteElo "2541"]
[BlackElo "2303"]
[TimeControl "180+1"]
[EndTime "11:07:28 PDT"]
[Termination "FedaMaster won by checkmate"]

1. e4 {[%clk 0:03:00.9]} 1... e6 {[%clk 0:02:59.2]} 2. d4 {[%clk 0:03:00.5]}
2... d5 {[%clk 0:02:59.6]} 3. exd5 {[%clk 0:03:00.7]} 3... exd5 {[%clk
0:02:58.7]} 4. Nf3 {[%clk 0:03:01.6]} 4... Nf6 {[%clk 0:02:58.9]} 5. Bd3 {[%clk
0:02:56]} 5... c5 {[%clk 0:02:58.6]} 6. O-O {[%clk 0:02:49.4]} 6... Be7 {[%clk
0:02:58.3]} 7. dxc5 {[%clk 0:02:49.2]} 7... O-O {[%clk 0:02:58.4]} 8. Be3 {[%clk
0:02:46.7]} 8... Nc6 {[%clk 0:02:56.7]} 9. c3 {[%clk 0:02:46.8]} 9... Bg4 {[%clk
0:02:55]} 10. Nbd2 {[%clk 0:02:41.4]} 10... Rc8 {[%clk 0:02:41]} 11. b4 {[%clk
0:02:35]} 11... a5 {[%clk 0:02:37.8]} 12. a3 {[%clk 0:02:34.7]} 12... Re8 {[%clk
0:02:27.1]} 13. h3 {[%clk 0:02:31.5]} 13... Bh5 {[%clk 0:02:26.5]} 14. Re1
{[%clk 0:02:22.8]} 14... Bf8 {[%clk 0:02:10.9]} 15. Qc2 {[%clk 0:01:55]} 15...
axb4 {[%clk 0:01:50]} 16. axb4 {[%clk 0:01:54.1]} 16... Ne4 {[%clk 0:01:38.1]}
17. Nxe4 {[%clk 0:01:50]} 17... Bxf3 {[%clk 0:01:35.5]} 18. Ng5 {[%clk
0:01:49.9]} 18... Be4 {[%clk 0:01:33.6]} 19. Nxe4 {[%clk 0:01:49.8]} 19... dxe4
{[%clk 0:01:34.4]} 20. Bxe4 {[%clk 0:01:50.7]} 20... Qh4 {[%clk 0:01:31.4]} 21.
Bxc6 {[%clk 0:01:33.3]} 21... bxc6 {[%clk 0:01:32.3]} 22. Bd4 {[%clk 0:01:29.9]}
22... Be7 {[%clk 0:01:15.5]} 23. Qf5 {[%clk 0:01:24.4]} 23... Bg5 {[%clk
0:01:01]} 24. g3 {[%clk 0:01:15.5]} 24... Qh6 {[%clk 0:00:55.8]} 25. h4 {[%clk
0:00:51.1]} 25... Bd2 {[%clk 0:00:41.1]} 26. Rxe8+ {[%clk 0:00:50.4]} 26... Rxe8
{[%clk 0:00:42]} 27. Qd7 {[%clk 0:00:51.3]} 27... Rf8 {[%clk 0:00:37.3]} 28. Ra6
{[%clk 0:00:40.8]} 28... Bxc3 {[%clk 0:00:36]} 29. Bxc3 {[%clk 0:00:35.4]} 29...
Qc1+ {[%clk 0:00:36.5]} 30. Kg2 {[%clk 0:00:32.4]} 30... Qxc3 {[%clk 0:00:37]}
31. Rb6 {[%clk 0:00:23.6]} 31... h5 {[%clk 0:00:27]} 32. Qxc6 {[%clk 0:00:22.3]}
32... Rd8 {[%clk 0:00:26.5]} 33. Qf3 {[%clk 0:00:20.4]} 33... Qc4 {[%clk
0:00:15.8]} 34. Qxh5 {[%clk 0:00:17.1]} 34... g6 {[%clk 0:00:11.3]} 35. Qf3
{[%clk 0:00:16.8]} 35... Rd3 {[%clk 0:00:10.8]} 36. Qf6 {[%clk 0:00:13.5]} 36...
Qe4+ {[%clk 0:00:10.1]} 37. Kh2 {[%clk 0:00:13.9]} 37... Qe8 {[%clk 0:00:05.6]}
38. Rd6 {[%clk 0:00:13.4]} 38... Rxd6 {[%clk 0:00:04.1]} 39. cxd6 {[%clk
0:00:14.3]} 39... Kh7 {[%clk 0:00:04.3]} 40. Qe7 {[%clk 0:00:13.7]} 40... Qc6
{[%clk 0:00:03.1]} 41. Qxf7+ {[%clk 0:00:13.8]} 41... Kh6 {[%clk 0:00:03]} 42.
d7 {[%clk 0:00:11.4]} 42... Qd6 {[%clk 0:00:03.1]} 43. Qf4+ {[%clk 0:00:10.2]}
43... Kh7 {[%clk 0:00:03.3]} 44. Qxd6 {[%clk 0:00:10.1]} 44... Kh6 {[%clk
0:00:04.2]} 45. Qxg6+ {[%clk 0:00:09.8]} 45... Kxg6 {[%clk 0:00:04.4]} 46. h5+
{[%clk 0:00:09.5]} 46... Kxh5 {[%clk 0:00:05.3]} 47. d8=Q {[%clk 0:00:10]} 47...
Kg4 {[%clk 0:00:06.2]} 48. Qd4+ {[%clk 0:00:10.3]} 48... Kf3 {[%clk 0:00:07.1]}
49. Qf4+ {[%clk 0:00:10.9]} 49... Ke2 {[%clk 0:00:07.9]} 50. Qe3+ {[%clk
0:00:11.5]} 50... Kf1 {[%clk 0:00:08.8]} 51. Qf3 {[%clk 0:00:11]} 51... Ke1
{[%clk 0:00:08.8]} 52. Qg2 {[%clk 0:00:11.2]} 52... Ke2 {[%clk 0:00:08.5]} 53.
f4+ {[%clk 0:00:12.1]} 53... Kd3 {[%clk 0:00:09.4]} 54. f5 {[%clk 0:00:12.8]}
54... Kc4 {[%clk 0:00:10.3]} 55. f6 {[%clk 0:00:13.7]} 55... Kxb4 {[%clk
0:00:11.2]} 56. f7 {[%clk 0:00:14.3]} 56... Kc5 {[%clk 0:00:12.1]} 57. Qe2
{[%clk 0:00:14.9]} 57... Kd5 {[%clk 0:00:13]} 58. f8=Q {[%clk 0:00:15.8]} 58...
Kc6 {[%clk 0:00:13.3]} 59. Qff1 {[%clk 0:00:16.7]} 59... Kb6 {[%clk 0:00:14]}
60. Qb1+ {[%clk 0:00:16.8]} 60... Kc6 {[%clk 0:00:14]} 61. Qc1+ {[%clk
0:00:17.5]} 61... Kd5 {[%clk 0:00:14.9]} 62. Qcd1+ {[%clk 0:00:17.9]} 62... Kc5
{[%clk 0:00:14]} 63. Qec2+ {[%clk 0:00:18.8]} 63... Kb4 {[%clk 0:00:14.9]} 64.
Qdb1+ {[%clk 0:00:19.7]} 64... Ka3 {[%clk 0:00:15.8]} 65. Qca2# {[%clk
0:00:20.6]} 1-0

[Event "*** Titled Tuesday Blitz"]
[Site "Chess.com"]
[Date "2020.05.12"]
[Round "6"]
[White "moro182"]
[Black "Paralinch"]
[Result "1-0"]
[WhiteElo "2683"]
[BlackElo "2866"]
[TimeControl "180+1"]
[EndTime "11:07:30 PDT"]
[Termination "moro182 won by resignation"]

1. d4 {[%clk 0:03:00.9]} 1... d5 {[%clk 0:03:00]} 2. Bf4 {[%clk 0:02:59.6]} 2...
c5 {[%clk 0:02:59.7]} 3. e3 {[%clk 0:02:59.1]} 3... Nc6 {[%clk 0:03:00.2]} 4.
Nf3 {[%clk 0:02:59.1]} 4... Nf6 {[%clk 0:03:00]} 5. Nbd2 {[%clk 0:02:58.8]} 5...
Bf5 {[%clk 0:02:59.6]} 6. c3 {[%clk 0:02:57.5]} 6... e6 {[%clk 0:03:00.2]} 7.
Qb3 {[%clk 0:02:56]} 7... Qb6 {[%clk 0:03:00.7]} 8. Qxb6 {[%clk 0:02:50.6]} 8...
axb6 {[%clk 0:03:01.6]} 9. Bb5 {[%clk 0:02:47.1]} 9... Nd7 {[%clk 0:03:02.1]}
10. O-O {[%clk 0:02:46.6]} 10... f6 {[%clk 0:02:56.5]} 11. Rfe1 {[%clk
0:02:45.7]} 11... g5 {[%clk 0:02:51.4]} 12. Bg3 {[%clk 0:02:43.3]} 12... Kf7
{[%clk 0:02:31.5]} 13. dxc5 {[%clk 0:02:18.3]} 13... Nxc5 {[%clk 0:02:28.7]} 14.
Nd4 {[%clk 0:02:07.3]} 14... Nxd4 {[%clk 0:02:26.3]} 15. exd4 {[%clk 0:02:08.2]}
15... Na4 {[%clk 0:02:22.9]} 16. Bxa4 {[%clk 0:02:00.6]} 16... Rxa4 {[%clk
0:02:23.8]} 17. a3 {[%clk 0:02:00.3]} 17... Be7 {[%clk 0:02:10.4]} 18. Bc7
{[%clk 0:01:49.4]} 18... Ra6 {[%clk 0:02:10.1]} 19. Nf1 {[%clk 0:01:47.9]} 19...
Rc8 {[%clk 0:02:09.9]} 20. Bg3 {[%clk 0:01:47.7]} 20... h5 {[%clk 0:02:03.4]}
21. h4 {[%clk 0:01:46.5]} 21... g4 {[%clk 0:01:50.3]} 22. Bf4 {[%clk 0:01:46.3]}
22... Ra5 {[%clk 0:01:49.5]} 23. Rad1 {[%clk 0:01:35.6]} 23... Rb5 {[%clk
0:01:44.2]} 24. Rd2 {[%clk 0:01:34.9]} 24... Rc6 {[%clk 0:01:43.2]} 25. Bh2
{[%clk 0:01:17.5]} 25... Bd8 {[%clk 0:01:38.2]} 26. Ng3 {[%clk 0:01:16.9]} 26...
Bg6 {[%clk 0:01:38.1]} 27. Ne2 {[%clk 0:01:17]} 27... f5 {[%clk 0:01:28.9]} 28.
Bg3 {[%clk 0:01:14.5]} 28... Ke8 {[%clk 0:01:24.6]} 29. Nf4 {[%clk 0:01:11.1]}
29... Bf7 {[%clk 0:01:25.1]} 30. Rde2 {[%clk 0:01:02]} 30... Kd7 {[%clk
0:01:25.4]} 31. Nd3 {[%clk 0:01:02.5]} 31... Bf6 {[%clk 0:01:25.9]} 32. Kh2
{[%clk 0:00:48.7]} 32... Ra5 {[%clk 0:01:25.9]} 33. Bf4 {[%clk 0:00:42.7]} 33...
Ra8 {[%clk 0:01:25.8]} 34. Bg5 {[%clk 0:00:41.7]} 34... Bg7 {[%clk 0:01:26.2]}
35. Kg3 {[%clk 0:00:40.3]} 35... Re8 {[%clk 0:01:24.4]} 36. Kf4 {[%clk
0:00:39.4]} 36... Bg8 {[%clk 0:01:24.8]} 37. f3 {[%clk 0:00:38.6]} 37... Bh7
{[%clk 0:01:22.4]} 38. Nb4 {[%clk 0:00:34.2]} 38... Rcc8 {[%clk 0:01:21.9]} 39.
Nd3 {[%clk 0:00:34.3]} 39... Rc6 {[%clk 0:01:21.7]} 40. Re3 {[%clk 0:00:33.9]}
40... Rc4 {[%clk 0:01:21.2]} 41. Nb4 {[%clk 0:00:31.5]} 41... Bf8 {[%clk
0:01:13.8]} 42. Nd3 {[%clk 0:00:25.7]} 42... Bd6+ {[%clk 0:01:12.4]} 43. Ne5+
{[%clk 0:00:26.1]} 43... Kc8 {[%clk 0:01:09.9]} 44. Bf6 {[%clk 0:00:22.4]} 44...
Rg8 {[%clk 0:01:08.8]} 45. Bg5 {[%clk 0:00:19.4]} 45... b5 {[%clk 0:01:06]} 46.
Kg3 {[%clk 0:00:19.5]} 46... Rg7 {[%clk 0:00:43.9]} 47. f4 {[%clk 0:00:15.7]}
47... Rcc7 {[%clk 0:00:37.9]} 48. Nd3 {[%clk 0:00:12.4]} 48... Bg8 {[%clk
0:00:37.3]} 49. Bf6 {[%clk 0:00:12.9]} 49... Rgd7 {[%clk 0:00:26.6]} 50. Be5
{[%clk 0:00:13]} 50... b6 {[%clk 0:00:27.3]} 51. Bxd6 {[%clk 0:00:10.4]} 51...
Rxd6 {[%clk 0:00:28.2]} 52. Kf2 {[%clk 0:00:10.4]} 52... Kb7 {[%clk 0:00:28.6]}
53. Nc1 {[%clk 0:00:09]} 53... Bf7 {[%clk 0:00:28.4]} 54. Nd3 {[%clk 0:00:08.7]}
54... Bg8 {[%clk 0:00:27.2]} 55. Ke2 {[%clk 0:00:08.4]} 55... Rc4 {[%clk
0:00:27.2]} 56. Kd2 {[%clk 0:00:08.7]} 56... Rc7 {[%clk 0:00:27.8]} 57. Nf2
{[%clk 0:00:08.7]} 57... Rd8 {[%clk 0:00:27.6]} 58. Nd3 {[%clk 0:00:08.8]} 58...
Rd6 {[%clk 0:00:26.7]} 59. Kc2 {[%clk 0:00:09.4]} 59... Ka6 {[%clk 0:00:26]} 60.
Ne5 {[%clk 0:00:09.8]} 60... Kb7 {[%clk 0:00:26]} 61. Kb3 {[%clk 0:00:10.3]}
61... Rd8 {[%clk 0:00:25.4]} 62. Kb4 {[%clk 0:00:10.5]} 62... Ka6 {[%clk
0:00:25.4]} 63. Kb3 {[%clk 0:00:10.8]} 63... Rd6 {[%clk 0:00:25.2]} 64. Ra1
{[%clk 0:00:11]} 64... Kb7 {[%clk 0:00:22]} 65. a4 {[%clk 0:00:11.1]} 65...
bxa4+ {[%clk 0:00:22.3]} 66. Rxa4 {[%clk 0:00:12]} 66... Rd8 {[%clk 0:00:22]}
67. Re1 {[%clk 0:00:12]} 67... Rb8 {[%clk 0:00:18.2]} 68. Rea1 {[%clk
0:00:12.4]} 68... Kc8 {[%clk 0:00:18.7]} 69. Ra8 {[%clk 0:00:12.4]} 69... Rb7
{[%clk 0:00:18]} 70. Kb4 {[%clk 0:00:12.5]} 70... Kc7 {[%clk 0:00:18.1]} 71.
Rxb8 {[%clk 0:00:12.6]} 71... Kxb8 {[%clk 0:00:19]} 72. Kb5 {[%clk 0:00:12.9]}
72... Bh7 {[%clk 0:00:19]} 73. Ra6 {[%clk 0:00:12.4]} 73... Kc7 {[%clk
0:00:18.7]} 74. Ra8 {[%clk 0:00:12.7]} 1-0

[Event "*** Titled Tuesday Blitz"]
[Site "Chess.com"]
[Date "2020.05.12"]
[Round "6"]
[White "manuellarrea"]
[Black "Lennis93"]
[Result "0-1"]
[WhiteElo "2199"]
[BlackElo "2375"]
[TimeControl "180+1"]
[EndTime "11:07:31 PDT"]
[Termination "Lennis93 won on time"]

1. e4 {[%clk 0:02:59.6]} 1... c6 {[%clk 0:02:59.7]} 2. d4 {[%clk 0:02:58.1]}
2... d5 {[%clk 0:03:00.6]} 3. exd5 {[%clk 0:02:57.5]} 3... cxd5 {[%clk
0:03:00.5]} 4. c4 {[%clk 0:02:57.4]} 4... Nf6 {[%clk 0:03:01.4]} 5. Nc3 {[%clk
0:02:57.3]} 5... e6 {[%clk 0:03:02.3]} 6. Nf3 {[%clk 0:02:55.7]} 6... Nc6 {[%clk
0:03:03.2]} 7. a3 {[%clk 0:02:53.2]} 7... Bd6 {[%clk 0:03:01.4]} 8. c5 {[%clk
0:02:52.7]} 8... Bc7 {[%clk 0:03:00.4]} 9. b4 {[%clk 0:02:52.4]} 9... e5 {[%clk
0:02:59.4]} 10. b5 {[%clk 0:02:41.1]} 10... Nxd4 {[%clk 0:02:54.8]} 11. Nxd4
{[%clk 0:02:40.3]} 11... exd4 {[%clk 0:02:49.7]} 12. Qxd4 {[%clk 0:02:40]} 12...
O-O {[%clk 0:02:49.8]} 13. Bf4 {[%clk 0:02:13.3]} 13... Re8+ {[%clk 0:02:49]}
14. Be2 {[%clk 0:02:09.2]} 14... Ba5 {[%clk 0:02:16.1]} 15. Bd2 {[%clk
0:02:06.8]} 15... Ne4 {[%clk 0:01:53.3]} 16. Nxe4 {[%clk 0:01:57.6]} 16... Rxe4
{[%clk 0:01:52]} 17. Qb2 {[%clk 0:01:42.2]} 17... Bg4 {[%clk 0:00:44.9]} 18. f3
{[%clk 0:01:38.9]} 18... Qh4+ {[%clk 0:00:44.5]} 19. Kf1 {[%clk 0:01:28.9]}
19... Rae8 {[%clk 0:00:41.3]} 20. Bxa5 {[%clk 0:01:09.5]} 20... Rxe2 {[%clk
0:00:30.5]} 21. Qxe2 {[%clk 0:01:09.1]} 21... Rxe2 {[%clk 0:00:30.6]} 22. Kxe2
{[%clk 0:01:09]} 22... Be6 {[%clk 0:00:30.7]} 23. Bb4 {[%clk 0:01:07.3]} 23...
Qc4+ {[%clk 0:00:30.3]} 24. Kf2 {[%clk 0:01:05.9]} 24... Qxb5 {[%clk 0:00:30.3]}
25. Rhc1 {[%clk 0:01:01.3]} 25... a5 {[%clk 0:00:30.1]} 26. Be1 {[%clk
0:01:00.5]} 26... Qb2+ {[%clk 0:00:28.7]} 27. Kg3 {[%clk 0:00:59.2]} 27... Qe5+
{[%clk 0:00:27.9]} 28. Kf2 {[%clk 0:00:58.2]} 28... Qd4+ {[%clk 0:00:27.6]} 29.
Kg3 {[%clk 0:00:51.8]} 29... g5 {[%clk 0:00:27.3]} 30. h3 {[%clk 0:00:48.4]}
30... Qf4+ {[%clk 0:00:25.8]} 31. Kf2 {[%clk 0:00:47.3]} 31... a4 {[%clk
0:00:25.8]} 32. Bb4 {[%clk 0:00:42.4]} 32... d4 {[%clk 0:00:25.6]} 33. Re1
{[%clk 0:00:40.1]} 33... d3 {[%clk 0:00:18.7]} 34. Rad1 {[%clk 0:00:39.1]} 34...
Qf5 {[%clk 0:00:14.6]} 35. Rd2 {[%clk 0:00:33.3]} 35... Bc4 {[%clk 0:00:14.1]}
36. Re4 {[%clk 0:00:31.1]} 36... Ba6 {[%clk 0:00:13.8]} 37. Re3 {[%clk
0:00:29.8]} 37... h5 {[%clk 0:00:13.8]} 38. Re4 {[%clk 0:00:29.1]} 38... Kh7
{[%clk 0:00:14]} 39. Ke3 {[%clk 0:00:24.2]} 39... Kg6 {[%clk 0:00:13.7]} 40. Kf2
{[%clk 0:00:21.8]} 40... Kf6 {[%clk 0:00:13.4]} 41. Ke3 {[%clk 0:00:21.2]} 41...
Kg6 {[%clk 0:00:13.3]} 42. Kf2 {[%clk 0:00:20.9]} 42... f6 {[%clk 0:00:14.2]}
43. Ke3 {[%clk 0:00:20.7]} 43... Bb5 {[%clk 0:00:14.3]} 44. Kf2 {[%clk
0:00:19.5]} 44... Bc6 {[%clk 0:00:14.4]} 45. Re3 {[%clk 0:00:19]} 45... Bb5
{[%clk 0:00:14.4]} 46. Re4 {[%clk 0:00:18.4]} 46... Qd5 {[%clk 0:00:14.4]} 47.
Ke3 {[%clk 0:00:17.3]} 47... Qb3 {[%clk 0:00:14.4]} 48. Rd4 {[%clk 0:00:15.9]}
48... Qb1 {[%clk 0:00:13.8]} 49. Kf2 {[%clk 0:00:14]} 49... Qc1 {[%clk
0:00:13.5]} 50. Rd6 {[%clk 0:00:12.8]} 50... Kf5 {[%clk 0:00:13.1]} 51. Rd5+
{[%clk 0:00:11.5]} 51... Ke6 {[%clk 0:00:12.6]} 52. Rd6+ {[%clk 0:00:11.2]}
52... Ke5 {[%clk 0:00:12.5]} 53. Rd8 {[%clk 0:00:08.8]} 53... g4 {[%clk
0:00:12.1]} 54. hxg4 {[%clk 0:00:07.3]} 54... hxg4 {[%clk 0:00:11.4]} 55. fxg4
{[%clk 0:00:07]} 55... Kf4 {[%clk 0:00:10.9]} 56. Rd4+ {[%clk 0:00:06.1]} 56...
Kg5 {[%clk 0:00:10.2]} 57. Ke3 {[%clk 0:00:04.2]} 57... Qg1+ {[%clk 0:00:09.1]}
58. Ke4 {[%clk 0:00:02.4]} 58... Qf1 {[%clk 0:00:07.7]} 0-1

[Event "*** Titled Tuesday Blitz"]
[Site "Chess.com"]
[Date "2020.05.12"]
[Round "6"]
[White "RestartingChess"]
[Black "fridaywins"]
[Result "1/2-1/2"]
[WhiteElo "2518"]
[BlackElo "2255"]
[TimeControl "180+1"]
[EndTime "11:07:33 PDT"]
[Termination "Game drawn - insufficient material"]

1. e4 {[%clk 0:03:00.9]} 1... e5 {[%clk 0:02:58.1]} 2. Nf3 {[%clk 0:03:01.3]}
2... Nc6 {[%clk 0:02:58.7]} 3. Bc4 {[%clk 0:03:01]} 3... Bc5 {[%clk 0:02:58.5]}
4. c3 {[%clk 0:03:00.2]} 4... Qe7 {[%clk 0:02:58.6]} 5. O-O {[%clk 0:03:00.4]}
5... d6 {[%clk 0:02:58.3]} 6. d4 {[%clk 0:03:00.3]} 6... Bb6 {[%clk 0:02:58.6]}
7. Re1 {[%clk 0:03:00.6]} 7... Nf6 {[%clk 0:02:58.1]} 8. b4 {[%clk 0:03:00.8]}
8... O-O {[%clk 0:02:55.7]} 9. a4 {[%clk 0:03:00]} 9... a5 {[%clk 0:02:55]} 10.
b5 {[%clk 0:02:59.9]} 10... Nb8 {[%clk 0:02:55.1]} 11. Ba3 {[%clk 0:02:59.9]}
11... Nbd7 {[%clk 0:02:48.9]} 12. Nbd2 {[%clk 0:02:51]} 12... Re8 {[%clk
0:02:47.3]} 13. Nf1 {[%clk 0:02:50.1]} 13... Qd8 {[%clk 0:02:22.6]} 14. Ng3
{[%clk 0:02:47.4]} 14... exd4 {[%clk 0:02:02.2]} 15. cxd4 {[%clk 0:02:45.4]}
15... Nf8 {[%clk 0:02:01.5]} 16. h3 {[%clk 0:02:17.3]} 16... Be6 {[%clk
0:02:00.8]} 17. Qb3 {[%clk 0:02:07.2]} 17... Bxc4 {[%clk 0:01:52.9]} 18. Qxc4
{[%clk 0:02:08.1]} 18... d5 {[%clk 0:01:53.3]} 19. exd5 {[%clk 0:01:38.6]} 19...
Qxd5 {[%clk 0:01:52.5]} 20. Qxd5 {[%clk 0:01:18]} 20... Nxd5 {[%clk 0:01:51.7]}
21. Bc5 {[%clk 0:01:18.7]} 21... Ne6 {[%clk 0:01:38.2]} 22. Re5 {[%clk
0:01:05.5]} 22... Nxc5 {[%clk 0:01:18.7]} 23. Rxd5 {[%clk 0:01:05.7]} 23... Ne6
{[%clk 0:01:08.6]} 24. Rd1 {[%clk 0:00:49]} 24... Red8 {[%clk 0:01:08.4]} 25.
Rxd8+ {[%clk 0:00:49.1]} 25... Rxd8 {[%clk 0:01:07.8]} 26. d5 {[%clk 0:00:47.2]}
26... Nf4 {[%clk 0:00:55.9]} 27. Nf5 {[%clk 0:00:47.7]} 27... g6 {[%clk
0:00:53.1]} 28. Nh6+ {[%clk 0:00:42.9]} 28... Kg7 {[%clk 0:00:52.5]} 29. Ng4
{[%clk 0:00:43.5]} 29... Rxd5 {[%clk 0:00:51.7]} 30. Re1 {[%clk 0:00:43.6]}
30... h5 {[%clk 0:00:44.1]} 31. Nge5 {[%clk 0:00:38.1]} 31... Nd3 {[%clk
0:00:39.7]} 32. Nxd3 {[%clk 0:00:38.3]} 32... Rxd3 {[%clk 0:00:40.3]} 33. Re7
{[%clk 0:00:39.1]} 33... Rd1+ {[%clk 0:00:38.2]} 34. Kh2 {[%clk 0:00:39.1]}
34... Bxf2 {[%clk 0:00:38.1]} 35. Rxc7 {[%clk 0:00:37.5]} 35... h4 {[%clk
0:00:37.6]} 36. Nxh4 {[%clk 0:00:27.3]} 36... Bxh4 {[%clk 0:00:37.4]} 37. Rxb7
{[%clk 0:00:27.9]} 37... Bf6 {[%clk 0:00:37.2]} 38. Ra7 {[%clk 0:00:24.3]} 38...
Bc3 {[%clk 0:00:36.9]} 39. Kg3 {[%clk 0:00:20.4]} 39... Rb1 {[%clk 0:00:37.8]}
40. Kf3 {[%clk 0:00:19.7]} 40... g5 {[%clk 0:00:37.3]} 41. Ke4 {[%clk
0:00:19.8]} 41... Kf6 {[%clk 0:00:35.9]} 42. Kd3 {[%clk 0:00:19.5]} 42... Be5
{[%clk 0:00:34.7]} 43. Rxa5 {[%clk 0:00:18.5]} 43... Rb3+ {[%clk 0:00:32.8]} 44.
Ke4 {[%clk 0:00:18.1]} 44... Rb4+ {[%clk 0:00:32.5]} 45. Kd5 {[%clk 0:00:18.3]}
45... Rd4+ {[%clk 0:00:32.6]} 46. Kc5 {[%clk 0:00:18.8]} 46... Rd2 {[%clk
0:00:31.4]} 47. Ra6+ {[%clk 0:00:19.2]} 47... Kf5 {[%clk 0:00:31.4]} 48. b6
{[%clk 0:00:19.4]} 48... Bd4+ {[%clk 0:00:30.4]} 49. Kc6 {[%clk 0:00:19.7]}
49... Rc2+ {[%clk 0:00:29.9]} 50. Kd5 {[%clk 0:00:20.1]} 50... Be3 {[%clk
0:00:29.5]} 51. b7 {[%clk 0:00:19.8]} 51... Rb2 {[%clk 0:00:28.3]} 52. Kc6
{[%clk 0:00:20.3]} 52... Kf4 {[%clk 0:00:27.5]} 53. Ra5 {[%clk 0:00:20.8]} 53...
Kg3 {[%clk 0:00:25.5]} 54. Rb5 {[%clk 0:00:21.1]} 54... Rxb5 {[%clk 0:00:25.3]}
55. Kxb5 {[%clk 0:00:19.7]} 55... Ba7 {[%clk 0:00:24.8]} 56. Ka6 {[%clk
0:00:19.2]} 56... Bb8 {[%clk 0:00:24.1]} 57. Kb6 {[%clk 0:00:20.1]} 57... Kxg2
{[%clk 0:00:24.9]} 58. a5 {[%clk 0:00:20.8]} 58... Kxh3 {[%clk 0:00:25.2]} 59.
a6 {[%clk 0:00:21.7]} 59... g4 {[%clk 0:00:25]} 60. a7 {[%clk 0:00:22.3]} 60...
Bxa7+ {[%clk 0:00:24.7]} 61. Kxa7 {[%clk 0:00:23.2]} 61... g3 {[%clk 0:00:25.3]}
62. b8=Q {[%clk 0:00:23.4]} 62... g2 {[%clk 0:00:26.2]} 63. Qh8+ {[%clk
0:00:23.4]} 63... Kg3 {[%clk 0:00:25.8]} 64. Qg7+ {[%clk 0:00:24]} 64... Kh2
{[%clk 0:00:26]} 65. Qh6+ {[%clk 0:00:24.4]} 65... Kg1 {[%clk 0:00:26.1]} 66.
Kb6 {[%clk 0:00:22.1]} 66... Kf1 {[%clk 0:00:25.9]} 67. Qf6+ {[%clk 0:00:21.8]}
67... Ke2 {[%clk 0:00:26]} 68. Qe7+ {[%clk 0:00:20.5]} 68... Kf3 {[%clk
0:00:25.6]} 69. Qxf7+ {[%clk 0:00:20.9]} 69... Ke3 {[%clk 0:00:25.2]} 70. Qg6
{[%clk 0:00:20.1]} 70... Kf2 {[%clk 0:00:25]} 71. Qf5+ {[%clk 0:00:20.7]} 71...
Kg3 {[%clk 0:00:24.3]} 72. Qg5+ {[%clk 0:00:20.9]} 72... Kf3 {[%clk 0:00:24.6]}
73. Qf5+ {[%clk 0:00:20.5]} 73... Kg3 {[%clk 0:00:24.2]} 74. Qg5+ {[%clk
0:00:21]} 74... Kf2 {[%clk 0:00:24.6]} 75. Kc5 {[%clk 0:00:21.9]} 75... g1=Q
{[%clk 0:00:23.7]} 76. Qf4+ {[%clk 0:00:22]} 76... Ke2+ {[%clk 0:00:22.5]} 77.
Kc4 {[%clk 0:00:21.3]} 77... Qe3 {[%clk 0:00:22.5]} 78. Qh2+ {[%clk 0:00:19.3]}
78... Qf2 {[%clk 0:00:22.2]} 79. Qh5+ {[%clk 0:00:19.9]} 79... Qf3 {[%clk
0:00:22.1]} 80. Qe5+ {[%clk 0:00:19.6]} 80... Qe3 {[%clk 0:00:22.1]} 81. Qb2+
{[%clk 0:00:20.1]} 81... Qd2 {[%clk 0:00:21.9]} 82. Qxd2+ {[%clk 0:00:20.3]}
82... Kxd2 {[%clk 0:00:20.6]} 1/2-1/2